[Event "12th Maria Albulet Memorial 2019"]
[Site "Braila"]
[Date "2019.10.06"]
[Round "6.5"]
[White "Bucur, Denisa-Andreea"]
[Black "Verbin, Valentina"]
[Result "1-0"]
[ECO "E21"]
[WhiteElo "1888"]
[BlackElo "2076"]
[Annotator "NA"]
[PlyCount "83"]
[EventDate "2019.10.02"]
[EventType "swiss"]
[EventCountry "ROU"]
[SourceTitle "playchess.com"]
[Source "ChessBase"]
[SourceQuality "1"]
[TimeControl "40/5400+30:900+30"]

1. d4 {[%emt 0:00:00]} Nf6 {[%emt 0:00:00]} 2. Nf3 {[%emt 0:00:00]} e6 {[%emt 0:00:00]} 3. c4 {[%emt 0:00:00]} b6 {[%emt 0:00:01]} 4. Nc3 {[%emt 0:00:00]} Bb7 {[%emt 0:00:18]} 5. a3 {[%emt 0:00:15]} d5 {[%emt 0:00:30]} 6. cxd5 {[%emt 0:00:06]} Nxd5 {[%emt 0:00:11]} 7. Bd2 {[%emt 0:00:21]} Nd7 {[%emt 0:00:19]} 8. Qc2 {[%emt 0:07:22]} c5 {[%emt 0:01:02]} 9. e4 {[%emt 0:01:14]} Nxc3 {[%emt 0:03:04]} 10. Bxc3 {[%emt 0:00:40]} cxd4 {[%emt 0:04:24]} 11. Nxd4 {[%emt 0:01:27]} a6 {[%emt 0:00:25]} 12. Rd1 {[%emt 0:05:58]} Qc7 {[%emt 0:01:14]} 13. Be2 {[%emt 0:01:52]} Rc8 {[%emt 0:02:45]} 14. O-O {[%emt 0:10:55]} Bxa3 {[%emt 0:10:59]} 15. Qb3 {[%emt 0:00:39]} Be7 {[%emt 0:11:18]} 16. Nxe6 {[%emt 0:07:56]} fxe6 {[%emt 0:00:26]} 17. Bh5+ {[%emt 0:03:42]} Kd8 {[%emt 0:01:21]} 18. Qxe6 {[%emt 0:00:27]} Qc6 {[%emt 0:02:04]} 19. Rxd7+ {[%emt 0:03:53]} Qxd7 {[%emt 0:00:11]} 20. Rd1 {[%emt 0:00:03]} Qxd1+ {[%emt 0:03:22]} 21. Bxd1 {[%emt 0:00:03]} Rc6 {[%emt 0:00:08]} 22. Qg4 {[%emt 0:03:37]} Rg6 {[%emt 0:04:32]} 23. Qe2 {[%emt 0:05:50]} Kc8 {[%emt 0:04:49]} 24. Be5 {[%emt 0:05:38]} Bc5 {[%emt 0:05:57]} 25. b4 {[%emt 0:09:36]} Bxb4 {[%emt 0:10:27]} 26. Qc4+ {[%emt 0:00:14]} Bc5 {[%emt 0:00:44]} 27. Bg4+ {[%emt 0:02:40]} Rxg4 {[%emt 0:04:37]} 28. Qe6+ {[%emt 0:00:05]} Kd8 {[%emt 0:00:01]} 29. Qxg4 {[%emt 0:00:06]} Rf8 {[%emt 0:00:25]} 30. Bg3 {[%emt 0:01:56]} a5 {[%emt 0:07:45]} 31. Qxg7 {[%emt 0:01:18]} Bxe4 {[%emt 0:03:52]} 32. Qc7+ {[%emt 0:00:06]} Ke8 {[%emt 0:00:02]} 33. Qe5+ {[%emt 0:00:06]} Kd7 {[%emt 0:00:03]} 34. Qxe4 {[%emt 0:00:08]} Re8 {[%emt 0:00:04]} 35. Qxh7+ {[%emt 0:04:15]} Re7 {[%emt 0:00:09]} 36. Qd3+ {[%emt 0:00:55]} Kc6 {[%emt 0:00:13]} 37. h4 {[%emt 0:00:12]} a4 {[%emt 0:00:10]} 38. Qg6+ {[%emt 0:08:16]} Kb7 {[%emt 0:00:28]} 39. Bd6 {[%emt 0:01:02]} Re1+ {[%emt 0:00:22]} 40. Kh2 {[%emt 0:00:00]} a3 {[%emt 0:00:00]} 41. Bxc5 {[%emt 0:00:34]} bxc5 {[%emt 0:01:34]} 42. Qc2 {[%emt 0:00:31]} 1-0

[Event "12th Maria Albulet Memorial 2019"]
[Site "Braila"]
[Date "2019.10.06"]
[Round "6.6"]
[White "Didiliuc, Dariana-Gabriela"]
[Black "Paraschiv, Petronela-Alexandra"]
[Result "1-0"]
[ECO "E34"]
[WhiteElo "1798"]
[BlackElo "1829"]
[Annotator "NA"]
[PlyCount "105"]
[EventDate "2019.10.02"]
[EventType "swiss"]
[EventCountry "ROU"]
[SourceTitle "playchess.com"]
[Source "ChessBase"]
[SourceQuality "1"]
[TimeControl "40/5400+30:900+30"]

1. d4 {[%emt 0:00:00]} e6 {[%emt 0:00:00]} 2. c4 {[%emt 0:00:00]} Nf6 {[%emt 0:00:20]} 3. Nc3 {[%emt 0:00:00]} Bb4 {[%emt 0:00:38]} 4. Qc2 {[%emt 0:00:16]} d5 {[%emt 0:00:40]} 5. cxd5 {[%emt 0:01:21]} Qxd5 {[%emt 0:01:04]} 6. a3 {[%emt 0:00:26]} Bxc3+ {[%emt 0:00:36]} 7. bxc3 {[%emt 0:00:29]} Qf5 {[%emt 0:01:20]} 8. Qxf5 {[%emt 0:01:06]} exf5 {[%emt 0:00:06]} 9. Nf3 {[%emt 0:00:24]} Nbd7 {[%emt 0:01:03]} 10. e3 {[%emt 0:00:35]} Nb6 {[%emt 0:00:49]} 11. c4 {[%emt 0:01:28]} c6 {[%emt 0:01:31]} 12. Ra2 {[%emt 0:02:04]} Be6 {[%emt 0:01:19]} 13. Rc2 {[%emt 0:00:19]} O-O {[%emt 0:03:35]} 14. Bd3 {[%emt 0:00:56]} Rad8 {[%emt 0:01:39]} 15. O-O {[%emt 0:01:19]} Ne4 {[%emt 0:05:10]} 16. Ne1 {[%emt 0:00:40]} Rfe8 {[%emt 0:01:10]} 17. f3 {[%emt 0:00:49]} Nf6 {[%emt 0:00:30]} 18. Bb2 {[%emt 0:01:57]} Bc8 {[%emt 0:00:17]} 19. Kf2 {[%emt 0:01:05]} Re7 {[%emt 0:05:16]} 20. g3 {[%emt 0:00:38]} h6 {[%emt 0:03:46]} 21. Ng2 {[%emt 0:00:56]} Nh7 {[%emt 0:04:57]} 22. h4 {[%emt 0:02:40]} Nf8 {[%emt 0:01:44]} 23. Rd1 {[%emt 0:07:59]} Be6 {[%emt 0:05:30]} 24. Nf4 {[%emt 0:04:44]} Nh7 {[%emt 0:17:22]} 25. Nxe6 {[%emt 0:10:45]} fxe6 {[%emt 0:00:40]} 26. c5 {[%emt 0:00:22]} Nd5 {[%emt 0:00:53]} 27. Re2 {[%emt 0:02:23]} Ndf6 {[%emt 0:01:49]} 28. a4 {[%emt 0:05:13]} b6 {[%emt 0:01:34]} 29. cxb6 {[%emt 0:00:16]} axb6 {[%emt 0:00:10]} 30. Rc2 {[%emt 0:01:28]} Rc7 {[%emt 0:02:02]} 31. Bc4 {[%emt 0:02:22]} Kf7 {[%emt 0:00:32]} 32. Rdc1 {[%emt 0:00:36]} c5 {[%emt 0:02:11]} 33. Ke2 {[%emt 0:01:05]} Rdc8 {[%emt 0:04:07]} 34. dxc5 {[%emt 0:00:35]} bxc5 {[%emt 0:02:25]} 35. Be5 {[%emt 0:00:08]} Ra7 {[%emt 0:01:16]} 36. Bb5 {[%emt 0:00:14]} Nf8 {[%emt 0:01:37]} 37. Rxc5 {[%emt 0:00:16]} Rxc5 {[%emt 0:00:12]} 38. Rxc5 {[%emt 0:00:05]} N8d7 {[%emt 0:00:24]} 39. Rc7 {[%emt 0:00:48]} Rxc7 {[%emt 0:00:32]} 40. Bxc7 {[%emt 0:00:00]} Nd5 {[%emt 0:00:00]} 41. Ba5 {[%emt 0:00:42]} Nc5 {[%emt 0:03:52]} 42. Bd2 {[%emt 0:01:18]} Nc7 {[%emt 0:00:55]} 43. Bc6 {[%emt 0:00:39]} Ke7 {[%emt 0:01:48]} 44. Bb4 {[%emt 0:00:11]} Kd6 {[%emt 0:00:07]} 45. Bb7 {[%emt 0:00:17]} Nd5 {[%emt 0:01:12]} 46. Bxd5 {[%emt 0:00:38]} Kxd5 {[%emt 0:00:46]} 47. Bxc5 {[%emt 0:00:15]} Kxc5 {[%emt 0:00:06]} 48. Kd3 {[%emt 0:00:22]} e5 {[%emt 0:06:20]} 49. h5 {[%emt 0:01:44]} Kb4 {[%emt 0:00:40]} 50. e4 {[%emt 0:01:02]} fxe4+ {[%emt 0:00:55]} 51. Kxe4 {[%emt 0:00:06]} Kxa4 {[%emt 0:00:08]} 52. Kxe5 {[%emt 0:00:04]} Kb4 {[%emt 0:00:07]} 53. Ke4 1-0

[Event "12th Maria Albulet Memorial 2019"]
[Site "Braila"]
[Date "2019.10.06"]
[Round "6.7"]
[White "Pitigoi, Sabina-Andreea"]
[Black "Mihailova, Alina"]
[Result "1-0"]
[ECO "D10"]
[WhiteElo "1490"]
[BlackElo "1770"]
[Annotator "NA"]
[PlyCount "87"]
[EventDate "2019.10.02"]
[EventType "swiss"]
[EventCountry "ROU"]
[SourceTitle "playchess.com"]
[Source "ChessBase"]
[SourceQuality "1"]
[TimeControl "40/5400+30:900+30"]

1. d4 {[%emt 0:00:00]} d5 {[%emt 0:00:00]} 2. c4 {[%emt 0:00:00]} c6 {[%emt 0:00:00]} 3. Nc3 {[%emt 0:00:00]} Nf6 {[%emt 0:00:00]} 4. cxd5 {[%emt 0:00:10]} cxd5 {[%emt 0:00:00]} 5. Bf4 {[%emt 0:00:31]} Nc6 {[%emt 0:00:21]} 6. e3 {[%emt 0:00:35]} a6 {[%emt 0:00:06]} 7. Rc1 {[%emt 0:01:34]} e6 {[%emt 0:02:10]} 8. Nf3 {[%emt 0:03:36]} Be7 {[%emt 0:00:48]} 9. Bd3 {[%emt 0:01:24]} O-O {[%emt 0:00:20]} 10. O-O {[%emt 0:00:16]} Nh5 {[%emt 0:00:52]} 11. Bg3 {[%emt 0:01:40]} Nxg3 {[%emt 0:00:50]} 12. hxg3 {[%emt 0:00:12]} Bd7 {[%emt 0:00:31]} 13. Qc2 {[%emt 0:08:55]} h6 {[%emt 0:00:25]} 14. a3 {[%emt 0:00:52]} Rc8 {[%emt 0:00:23]} 15. Qb1 {[%emt 0:01:42]} b5 {[%emt 0:05:26]} 16. e4 {[%emt 0:13:10]} dxe4 {[%emt 0:01:00]} 17. Bxe4 {[%emt 0:00:13]} Qb6 {[%emt 0:06:28]} 18. d5 {[%emt 0:04:22]} Na5 {[%emt 0:00:44]} 19. dxe6 {[%emt 0:02:35]} Bxe6 {[%emt 0:00:36]} 20. Nd5 {[%emt 0:01:29]} Qa7 {[%emt 0:02:55]} 21. Nxe7+ {[%emt 0:02:08]} Qxe7 {[%emt 0:00:10]} 22. Rxc8 {[%emt 0:00:57]} Rxc8 {[%emt 0:00:15]} 23. Bf5 {[%emt 0:03:43]} Qf6 {[%emt 0:07:29]} 24. Bxe6 {[%emt 0:01:24]} Qxe6 {[%emt 0:00:10]} 25. Re1 {[%emt 0:08:36]} Qb3 {[%emt 0:01:48]} 26. Nd4 {[%emt 0:07:35]} Qc4 {[%emt 0:10:49]} 27. Nf5 {[%emt 0:03:09]} Rd8 {[%emt 0:00:30]} 28. b4 {[%emt 0:05:43]} Nb7 {[%emt 0:02:31]} 29. Qa1 {[%emt 0:07:41]} f6 {[%emt 0:02:57]} 30. Re7 {[%emt 0:08:35]} Qg4 {[%emt 0:02:26]} 31. Rxg7+ {[%emt 0:02:42]} Qxg7 {[%emt 0:00:08]} 32. Nxg7 {[%emt 0:00:03]} Kxg7 {[%emt 0:00:02]} 33. Qc1 {[%emt 0:00:34]} Nd6 {[%emt 0:02:44]} 34. Qc6 {[%emt 0:01:57]} Nf7 {[%emt 0:04:46]} 35. Qxa6 {[%emt 0:00:53]} Rd1+ {[%emt 0:01:28]} 36. Kh2 {[%emt 0:00:04]} Ne5 {[%emt 0:00:44]} 37. Qc8 {[%emt 0:02:24]} h5 {[%emt 0:04:52]} 38. f3 {[%emt 0:02:09]} Rd3 {[%emt 0:00:41]} 39. Qb7+ {[%emt 0:00:49]} Kg6 {[%emt 0:00:45]} 40. Qxb5 {[%emt 0:00:00]} Rxa3 {[%emt 0:00:00]} 41. Qe8+ {[%emt 0:02:12]} Nf7 {[%emt 0:00:54]} 42. Qg8+ {[%emt 0:00:45]} Kh6 {[%emt 0:00:18]} 43. Qxf7 {[%emt 0:00:11]} Ra6 {[%emt 0:00:16]} 44. b5 {[%emt 0:00:21]} 1-0

[Event "12th Maria Albulet Memorial 2019"]
[Site "Braila"]
[Date "2019.10.06"]
[Round "6.8"]
[White "Anghel, Maria"]
[Black "Maria, Lia-Alexandra"]
[Result "1-0"]
[ECO "E21"]
[WhiteElo "1743"]
[BlackElo "1602"]
[Annotator "NA"]
[PlyCount "70"]
[EventDate "2019.10.02"]
[EventType "swiss"]
[EventCountry "ROU"]
[SourceTitle "playchess.com"]
[Source "ChessBase"]
[SourceQuality "1"]
[TimeControl "40/5400+30:900+30"]

1. d4 {[%emt 0:00:00]} Nf6 {[%emt 0:00:00]} 2. Nf3 {[%emt 0:00:00]} e6 {[%emt 0:00:00]} 3. c4 {[%emt 0:00:00]} b6 {[%emt 0:00:00]} 4. Nc3 {[%emt 0:00:00]} Bb7 {[%emt 0:00:05]} 5. a3 {[%emt 0:00:08]} Be7 {[%emt 0:00:33]} 6. d5 {[%emt 0:00:23]} exd5 {[%emt 0:06:35]} 7. cxd5 {[%emt 0:00:27]} d6 {[%emt 0:01:10]} 8. e4 {[%emt 0:00:35]} Nbd7 {[%emt 0:00:28]} 9. Bd3 {[%emt 0:02:41]} O-O {[%emt 0:00:58]} 10. O-O {[%emt 0:01:01]} c6 {[%emt 0:07:33]} 11. dxc6 {[%emt 0:01:31]} Bxc6 {[%emt 0:00:31]} 12. Nd4 {[%emt 0:05:35]} Bb7 {[%emt 0:01:19]} 13. Re1 {[%emt 0:03:23]} Re8 {[%emt 0:01:39]} 14. b4 {[%emt 0:06:12]} Rc8 {[%emt 0:02:42]} 15. Bb2 {[%emt 0:06:09]} Ne5 {[%emt 0:01:49]} 16. Bb5 {[%emt 0:04:46]} Rf8 {[%emt 0:02:24]} 17. Qe2 {[%emt 0:05:56]} h6 {[%emt 0:10:37]} 18. Rad1 {[%emt 0:04:16]} Qc7 {[%emt 0:01:35]} 19. Nf5 {[%emt 0:03:33]} Rfd8 {[%emt 0:02:13]} 20. Rc1 {[%emt 0:03:32]} Bf8 {[%emt 0:02:48]} 21. Nd5 {[%emt 0:03:11]} Qb8 {[%emt 0:00:18]} 22. Nfe7+ {[%emt 0:06:31]} Kh8 {[%emt 0:01:59]} 23. Nxc8 {[%emt 0:00:31]} Nxd5 {[%emt 0:00:54]} 24. exd5 {[%emt 0:00:16]} Bxc8 {[%emt 0:00:52]} 25. f4 {[%emt 0:06:50]} Ng6 {[%emt 0:00:52]} 26. Qh5 {[%emt 0:00:58]} Kg8 {[%emt 0:01:36]} 27. f5 {[%emt 0:03:15]} Ne5 {[%emt 0:00:57]} 28. f6 {[%emt 0:04:46]} g6 {[%emt 0:01:27]} 29. Qe2 {[%emt 0:00:59]} Bg4 {[%emt 0:01:26]} 30. Qc2 {[%emt 0:03:12]} Rc8 {[%emt 0:01:26]} 31. Qe4 {[%emt 0:04:22]} Bf5 {[%emt 0:01:33]} 32. Rxc8 {[%emt 0:02:07]} Qxc8 {[%emt 0:00:19]} 33. Qe3 {[%emt 0:04:15]} Ng4 {[%emt 0:01:51]} 34. Qe8 {[%emt 0:01:36]} Qc2 {[%emt 0:00:19]} 35. Qxf8+ Kxf8 1-0

[Event "12th Maria Albulet Memorial 2019"]
[Site "Braila"]
[Date "2019.10.07"]
[Round "7.2"]
[White "Navrotescu, Andreea-Cristiana"]
[Black "Bucur, Denisa-Andreea"]
[Result "1/2-1/2"]
[ECO "A06"]
[WhiteElo "2241"]
[BlackElo "1888"]
[Annotator "ChessBase"]
[PlyCount "114"]
[EventDate "2019.10.02"]
[EventType "swiss"]
[EventCountry "ROU"]
[SourceTitle "playchess.com"]
[Source "ChessBase"]
[SourceQuality "1"]
[TimeControl "40/5400+30:900+30"]

1. Nf3 {[%emt 0:03:23]} d5 {[%emt 0:00:00]} 2. b3 {[%emt 0:00:05]} Bg4 {[%emt 0:00:00]} 3. Bb2 {[%emt 0:00:09]} e6 {[%emt 0:00:00]} 4. g3 {[%emt 0:00:14]} Nf6 {[%emt 0:00:26]} 5. Bg2 {[%emt 0:00:20]} c6 {[%emt 0:02:43]} 6. d3 {[%emt 0:01:02]} Bd6 {[%emt 0:02:47]} 7. Nbd2 {[%emt 0:02:13]} Nbd7 {[%emt 0:01:09]} 8. h3 {[%emt 0:02:37]} Bxf3 {[%emt 0:05:32]} 9. Nxf3 {[%emt 0:04:00]} O-O {[%emt 0:00:28]} 10. O-O {[%emt 0:01:10]} Qe7 {[%emt 0:05:05]} 11. a3 {[%emt 0:03:05]} e5 {[%emt 0:03:29]} 12. Nh4 {[%emt 0:01:13]} Bc7 {[%emt 0:03:35]} 13. e4 {[%emt 0:01:56]} dxe4 {[%emt 0:04:09]} 14. dxe4 {[%emt 0:00:50]} Rfd8 {[%emt 0:01:28]} 15. Nf5 {[%emt 0:01:18]} Qe6 {[%emt 0:01:13]} 16. Qe2 {[%emt 0:01:53]} Nc5 {[%emt 0:04:06]} 17. Qe3 {[%emt 0:06:31]} Bb6 {[%emt 0:14:30]} 18. Qg5 {[%emt 0:00:20]} Ne8 {[%emt 0:00:05]} 19. Rad1 {[%emt 0:08:38]} a5 {[%emt 0:10:45]} 20. h4 {[%emt 0:01:51]} Qf6 {[%emt 0:05:26]} 21. Bxe5 {[%emt 0:01:52]} Qxg5 {[%emt 0:00:53]} 22. hxg5 {[%emt 0:00:03]} Ne6 {[%emt 0:01:00]} 23. c4 {[%emt 0:15:20]} Nxg5 {[%emt 0:03:04]} 24. b4 {[%emt 0:00:51]} Bc7 {[%emt 0:01:41]} 25. Bxc7 {[%emt 0:05:01]} Nxc7 {[%emt 0:00:20]} 26. Nd6 {[%emt 0:00:06]} axb4 {[%emt 0:03:03]} 27. axb4 {[%emt 0:01:34]} Nge6 {[%emt 0:00:50]} 28. e5 {[%emt 0:00:50]} Ra4 {[%emt 0:01:28]} 29. Rb1 {[%emt 0:03:37]} Nd4 {[%emt 0:01:41]} 30. Rb2 {[%emt 0:11:05]} b5 {[%emt 0:04:41]} 31. Rd1 {[%emt 0:02:15]} Nce6 {[%emt 0:03:25]} 32. c5 {[%emt 0:00:24]} g6 {[%emt 0:01:36]} 33. f4 {[%emt 0:01:01]} Rda8 {[%emt 0:01:23]} 34. Kf2 {[%emt 0:01:13]} Ra2 {[%emt 0:00:28]} 35. Rdd2 {[%emt 0:00:16]} Rxb2 {[%emt 0:00:27]} 36. Rxb2 {[%emt 0:00:02]} Ra3 {[%emt 0:00:55]} 37. Nb7 {[%emt 0:01:01]} Kf8 {[%emt 0:02:15]} 38. Be4 {[%emt 0:01:41]} Ke7 {[%emt 0:01:17]} 39. Nd6 {[%emt 0:00:34]} f6 {[%emt 0:04:25]} 40. f5 {[%emt 0:00:00]} gxf5 {[%emt 0:00:00]} 41. Nxf5+ {[%emt 0:02:43]} Nxf5 {[%emt 0:04:02]} 42. Bxf5 {[%emt 0:00:27]} Ng5 {[%emt 0:04:23]} 43. exf6+ {[%emt 0:02:01]} Kxf6 44. Bd7 {[%emt 0:01:11]} Ne4+ {[%emt 0:01:33]} 45. Kg2 {[%emt 0:00:30]} Rxg3+ {[%emt 0:02:20]} 46. Kh2 {[%emt 0:00:00]} Rd3 {[%emt 0:01:46]} 47. Bxc6 Rd2+ {[%emt 0:00:02]} 48. Rxd2 {[%emt 0:00:15]} Nxd2 {[%emt 0:00:02]} 49. Bxb5 {[%emt 0:00:21]} Ke6 {[%emt 0:00:13]} 50. Bc6 {[%emt 0:01:57]} Nb3 {[%emt 0:01:46]} 51. Kg3 {[%emt 0:06:29]} Ke5 {[%emt 0:02:23]} 52. Bg2 {[%emt 0:01:48]} Nd4 {[%emt 0:00:53]} 53. Kh4 {[%emt 0:02:40]} Ne6 {[%emt 0:00:53]} 54. Kg4 {[%emt 0:01:16]} Kd4 {[%emt 0:02:15]} 55. c6 {[%emt 0:00:24]} Kc4 {[%emt 0:00:13]} 56. Kf5 {[%emt 0:01:01]} Nd4+ {[%emt 0:00:20]} 57. Ke5 {[%emt 0:00:05]} Nxc6+ {[%emt 0:00:03]} 1/2-1/2

[Event "12th Maria Albulet Memorial 2019"]
[Site "Braila"]
[Date "2019.10.07"]
[Round "7.3"]
[White "Cosman, Andreea-Marioara"]
[Black "Lehaci, Miruna-Daria"]
[Result "1-0"]
[ECO "E44"]
[WhiteElo "2165"]
[BlackElo "2131"]
[Annotator "ChessBase"]
[PlyCount "69"]
[EventDate "2019.10.02"]
[EventType "swiss"]
[EventCountry "ROU"]
[SourceTitle "playchess.com"]
[Source "ChessBase"]
[SourceQuality "1"]
[TimeControl "40/5400+30:900+30"]

1. d4 {[%emt 0:00:07]} Nf6 {[%emt 0:00:00]} 2. c4 {[%emt 0:00:06]} e6 {[%emt 0:00:00]} 3. Nc3 {[%emt 0:00:07]} Bb4 {[%emt 0:00:00]} 4. e3 {[%emt 0:00:08]} b6 {[%emt 0:00:00]} 5. Nge2 {[%emt 0:00:09]} c5 {[%emt 0:00:00]} 6. a3 {[%emt 0:00:26]} Ba5 {[%emt 0:00:00]} 7. Rb1 {[%emt 0:00:08]} Na6 {[%emt 0:00:00]} 8. Bd2 {[%emt 0:00:07]} O-O {[%emt 0:00:02]} 9. Ng3 {[%emt 0:00:06]} Bb7 {[%emt 0:00:11]} 10. Bd3 {[%emt 0:00:25]} cxd4 {[%emt 0:00:11]} 11. exd4 {[%emt 0:00:08]} Bxc3 {[%emt 0:00:04]} 12. bxc3 {[%emt 0:00:14]} Nc7 {[%emt 0:00:06]} 13. O-O {[%emt 0:00:08]} Ba6 {[%emt 0:00:02]} 14. Qe2 {[%emt 0:10:18]} Rc8 {[%emt 0:05:50]} 15. f4 {[%emt 0:16:17]} d5 {[%emt 0:17:05]} 16. f5 {[%emt 0:15:51]} dxc4 {[%emt 0:04:19]} 17. Bc2 {[%emt 0:07:07]} Re8 {[%emt 0:07:08]} 18. Bg5 {[%emt 0:14:54]} h6 {[%emt 0:09:55]} 19. Bxf6 {[%emt 0:00:29]} Qxf6 {[%emt 0:19:51]} 20. Ne4 {[%emt 0:03:00]} Qh4 {[%emt 0:00:32]} 21. Nd6 exf5 {[%emt 0:07:38]} 22. Qf3 {[%emt 0:00:36]} f4 {[%emt 0:03:56]} 23. Nxc8 {[%emt 0:04:35]} Bxc8 24. Qc6 {[%emt 0:10:36]} Re7 {[%emt 0:09:28]} 25. d5 {[%emt 0:00:30]} Re2 {[%emt 0:04:40]} 26. Qxc7 Rxg2+ {[%emt 0:01:08]} 27. Kxg2 {[%emt 0:05:57]} Qg5+ {[%emt 0:00:06]} 28. Kf2 {[%emt 0:02:25]} Qh4+ {[%emt 0:00:20]} 29. Ke2 {[%emt 0:02:38]} f3+ {[%emt 0:07:40]} 30. Kd1 {[%emt 0:01:10]} g6 {[%emt 0:00:58]} 31. Qxc8+ {[%emt 0:00:36]} Kg7 {[%emt 0:00:04]} 32. Kc1 {[%emt 0:01:03]} Qg5+ {[%emt 0:00:16]} 33. Kb2 {[%emt 0:00:26]} Qxd5 {[%emt 0:00:07]} 34. Rbd1 {[%emt 0:00:22]} Qb5+ {[%emt 0:00:28]} 35. Ka2 {[%emt 0:00:09]} 1-0

[Event "12th Maria Albulet Memorial 2019"]
[Site "Braila"]
[Date "2019.10.07"]
[Round "7.4"]
[White "Petrenko, Svetlana"]
[Black "Didiliuc, Dariana-Gabriela"]
[Result "1/2-1/2"]
[ECO "A45"]
[WhiteElo "2112"]
[BlackElo "1798"]
[Annotator "ChessBase"]
[PlyCount "83"]
[EventDate "2019.10.02"]
[EventType "swiss"]
[EventCountry "ROU"]
[SourceTitle "playchess.com"]
[Source "ChessBase"]
[SourceQuality "1"]
[TimeControl "40/5400+30:900+30"]

1. d4 {[%emt 0:00:00]} Nf6 {[%emt 0:00:00]} 2. b3 {[%emt 0:00:00]} g6 {[%emt 0:00:47]} 3. Bb2 {[%emt 0:00:00]} Bg7 {[%emt 0:00:10]} 4. Nf3 {[%emt 0:00:55]} O-O {[%emt 0:00:15]} 5. g3 {[%emt 0:00:24]} d6 {[%emt 0:00:50]} 6. Bg2 {[%emt 0:00:09]} c5 {[%emt 0:01:00]} 7. O-O {[%emt 0:01:57]} Nbd7 {[%emt 0:01:25]} 8. e3 {[%emt 0:04:19]} Rb8 {[%emt 0:03:08]} 9. a4 {[%emt 0:01:38]} b6 {[%emt 0:00:21]} 10. c4 {[%emt 0:01:01]} e6 {[%emt 0:02:05]} 11. Nc3 {[%emt 0:05:28]} a6 {[%emt 0:01:47]} 12. e4 {[%emt 0:10:56]} Bb7 {[%emt 0:04:44]} 13. Re1 {[%emt 0:01:28]} Qc7 {[%emt 0:01:31]} 14. d5 {[%emt 0:05:05]} e5 {[%emt 0:06:22]} 15. Nh4 {[%emt 0:02:19]} Qd8 {[%emt 0:07:30]} 16. Bh3 {[%emt 0:06:21]} Bc8 {[%emt 0:01:24]} 17. Bc1 {[%emt 0:01:25]} Ne8 {[%emt 0:00:59]} 18. Ra2 {[%emt 0:02:20]} Ndf6 {[%emt 0:00:29]} 19. Bf1 {[%emt 0:01:23]} Ng4 {[%emt 0:00:31]} 20. Bd3 {[%emt 0:03:17]} Nh6 {[%emt 0:01:24]} 21. Qc2 {[%emt 0:08:48]} a5 {[%emt 0:19:17]} 22. Nd1 {[%emt 0:03:21]} f5 {[%emt 0:07:14]} 23. exf5 {[%emt 0:01:29]} Nxf5 {[%emt 0:00:11]} 24. Nxf5 {[%emt 0:00:14]} gxf5 {[%emt 0:00:31]} 25. f3 {[%emt 0:00:19]} Rb7 {[%emt 0:01:49]} 26. Ne3 {[%emt 0:03:35]} Rbf7 {[%emt 0:00:24]} 27. Ng2 {[%emt 0:02:33]} Qf6 {[%emt 0:04:31]} 28. Nh4 {[%emt 0:14:01]} Bh6 {[%emt 0:01:32]} 29. Bxh6 {[%emt 0:04:58]} Qxh6 {[%emt 0:00:07]} 30. Ng2 {[%emt 0:00:19]} Rg7 {[%emt 0:01:14]} 31. f4 {[%emt 0:02:09]} exf4 {[%emt 0:04:14]} 32. Qc1 {[%emt 0:01:29]} Nf6 {[%emt 0:04:17]} 33. Qxf4 {[%emt 0:02:11]} Ng4 {[%emt 0:01:01]} 34. Qxh6 {[%emt 0:00:15]} Nxh6 {[%emt 0:00:05]} 35. Nf4 {[%emt 0:00:22]} Ng4 {[%emt 0:00:13]} 36. Bc2 {[%emt 0:05:50]} Ne5 {[%emt 0:00:17]} 37. Kg2 {[%emt 0:02:00]} Ng6 {[%emt 0:04:20]} 38. Kf3 {[%emt 0:00:42]} Ne5+ {[%emt 0:00:15]} 39. Kf2 {[%emt 0:01:28]} Re7 {[%emt 0:00:46]} 40. h3 {[%emt 0:00:00]} Rfe8 {[%emt 0:00:00]} 41. Raa1 {[%emt 0:01:37]} Ng6 {[%emt 0:06:37]} 42. Rxe7 {[%emt 0:05:01]} 1/2-1/2

[Event "12th Maria Albulet Memorial 2019"]
[Site "Braila"]
[Date "2019.10.07"]
[Round "7.5"]
[White "Maria, Lia-Alexandra"]
[Black "Cosma, Elena-Luminita"]
[Result "0-1"]
[ECO "D48"]
[WhiteElo "1602"]
[BlackElo "2313"]
[Annotator "ChessBase"]
[PlyCount "36"]
[EventDate "2019.10.02"]
[EventType "swiss"]
[EventCountry "ROU"]
[SourceTitle "playchess.com"]
[Source "ChessBase"]
[SourceQuality "1"]
[TimeControl "40/5400+30:900+30"]

1. d4 {[%emt 0:00:00]} e6 {[%emt 0:00:00]} 2. c4 {[%emt 0:00:00]} d5 {[%emt 0:00:00]} 3. Nc3 {[%emt 0:00:08]} c6 {[%emt 0:00:08]} 4. Nf3 {[%emt 0:00:24]} Nf6 {[%emt 0:00:21]} 5. e3 {[%emt 0:00:37]} Nbd7 {[%emt 0:00:05]} 6. Bd3 {[%emt 0:00:21]} dxc4 {[%emt 0:00:25]} 7. Bxc4 {[%emt 0:00:19]} b5 {[%emt 0:00:04]} 8. Bd3 {[%emt 0:04:47]} a6 {[%emt 0:00:38]} 9. O-O {[%emt 0:02:33]} c5 {[%emt 0:00:27]} 10. a3 {[%emt 0:20:27]} Bb7 {[%emt 0:02:11]} 11. Re1 {[%emt 0:07:28]} Rc8 {[%emt 0:13:58]} 12. e4 {[%emt 0:07:23]} cxd4 {[%emt 0:02:56]} 13. Nxd4 {[%emt 0:03:17]} Ne5 {[%emt 0:05:38]} 14. Be2 {[%emt 0:06:48]} Bc5 {[%emt 0:03:23]} 15. Nf3 {[%emt 0:01:54]} Neg4 {[%emt 0:02:42]} 16. Rf1 {[%emt 0:06:34]} Qxd1 {[%emt 0:00:50]} 17. Bxd1 {[%emt 0:00:32]} Nxf2 {[%emt 0:01:58]} 18. Rxf2 {[%emt 0:01:14]} Ng4 {[%emt 0:00:10]} 0-1